[Event "Titled Tuesday Blitz February 22 Late 2022"]
[White "Shuvalova, Polina"]
[Black "Jarocka, Liwia"]
[WhiteFideId "24171760"]
[BlackFideId "21807558"]
[WhiteElo "2355"]
[BlackElo "1896"]
[Result "0-1"]
[Round "03"]
[TimeControl "180+1"]
[Date "2022.02.23"]
[WhiteClock "0:00:01"]
[BlackClock "0:00:11"]

1. d4 {[%clk 0:02:58]}  d5 {[%clk 0:02:57]} 2. Nf3 {[%clk 0:02:54]}  e6 {[%clk 0:02:57]} 3. Bf4 {[%clk 0:02:54]}  Nf6 {[%clk 0:02:56]} 4. e3 {[%clk 0:02:54]}  Bd6 {[%clk 0:02:56]} 5. Nbd2 {[%clk 0:02:54]}  O-O {[%clk 0:02:55]} 6. Bd3 {[%clk 0:02:52]}  c5 {[%clk 0:02:54]} 7. c3 {[%clk 0:02:52]}  b6 {[%clk 0:02:49]} 8. Qe2 {[%clk 0:02:48]}  Bb7 {[%clk 0:02:42]} 9. h4 {[%clk 0:02:43]}  Ne4 {[%clk 0:02:37]} 10. h5 {[%clk 0:02:36]}  f5 {[%clk 0:01:50]} 11. h6 {[%clk 0:02:23]}  g6 {[%clk 0:01:49]} 12. O-O-O {[%clk 0:02:17]}  Bxf4 {[%clk 0:01:41]} 13. exf4 {[%clk 0:02:17]}  Nd7 {[%clk 0:01:40]} 14. Kb1 {[%clk 0:02:12]}  Rc8 {[%clk 0:01:35]} 15. Ng5 {[%clk 0:02:02]}  Re8 {[%clk 0:01:23]} 16. Ndf3 {[%clk 0:02:01]}  Qe7 {[%clk 0:01:08]} 17. Rhe1 {[%clk 0:01:50]}  Ndf6 {[%clk 0:01:05]} 18. Ne5 {[%clk 0:01:42]}  Nd7 {[%clk 0:00:54]} 19. f3 {[%clk 0:01:33]}  Nxe5 {[%clk 0:00:52]} 20. fxe4 {[%clk 0:01:10]}  Nxd3 {[%clk 0:00:52]} 21. Qxd3 {[%clk 0:01:09]}  dxe4 {[%clk 0:00:52]} 22. Qe3 {[%clk 0:01:03]}  Bd5 {[%clk 0:00:48]} 23. dxc5 {[%clk 0:01:01]}  Qxc5 {[%clk 0:00:47]} 24. Rd4 {[%clk 0:01:01]}  b5 {[%clk 0:00:45]} 25. Red1 {[%clk 0:00:57]}  b4 {[%clk 0:00:44]} 26. cxb4 {[%clk 0:00:53]}  Qc2+ {[%clk 0:00:44]} 27. Ka1 {[%clk 0:00:53]}  Rc7 {[%clk 0:00:39]} 28. a3 {[%clk 0:00:24]}  Rec8 {[%clk 0:00:38]} 29. Rxd5 {[%clk 0:00:21]}  exd5 {[%clk 0:00:37]} 30. Qd4 {[%clk 0:00:21]}  Qb3 {[%clk 0:00:26]} 31. Rb1 {[%clk 0:00:21]}  Qc4 {[%clk 0:00:15]} 32. Qf6 {[%clk 0:00:15]}  d4 {[%clk 0:00:15]} 33. Ne6 {[%clk 0:00:12]}  Rf7 {[%clk 0:00:13]} 34. Qe5 {[%clk 0:00:09]}  Re8 {[%clk 0:00:13]} 35. Qxd4 {[%clk 0:00:03]}  Qxe6 {[%clk 0:00:13]} 36. g4 {[%clk 0:00:03]}  e3 {[%clk 0:00:12]} 37. gxf5 {[%clk 0:00:02]}  Qxf5 {[%clk 0:00:12]} 38. Re1 {[%clk 0:00:02]}  e2 {[%clk 0:00:13]} 39. Qc3 {[%clk 0:00:02]}  Qf6 {[%clk 0:00:12]} 40. Qd2 {[%clk 0:00:02]}  Qe7 {[%clk 0:00:12]} 41. Qc3 {[%clk 0:00:02]}  Qe3 {[%clk 0:00:11]} 42. Qc4 {[%clk 0:00:01]}  Qe4 {[%clk 0:00:11]} 43. Qc3 {[%clk 0:00:01]}  Qxf4 {[%clk 0:00:11]} 0-1


[Site "https://www.chess.com"]

[Event "Titled Tuesday Blitz February 22 Late 2022"]
[White "Sliwicki, Damian"]
[Black "Samarth, J Rao"]
[WhiteFideId "1127128"]
[BlackFideId "46652370"]
[WhiteElo "2084"]
[BlackElo "1514"]
[Result "0-1"]
[Round "03"]
[TimeControl "180+1"]
[Date "2022.02.23"]
[WhiteClock "0:00:13"]
[BlackClock "0:00:08"]

1. e4 {[%clk 0:03:00]}  c5 {[%clk 0:02:20]} 2. Nf3 {[%clk 0:02:59]}  d6 {[%clk 0:02:20]} 3. d4 {[%clk 0:02:59]}  cxd4 {[%clk 0:02:21]} 4. Qxd4 {[%clk 0:02:56]}  Nc6 {[%clk 0:02:20]} 5. Bb5 {[%clk 0:02:55]}  Bd7 {[%clk 0:02:18]} 6. Bxc6 {[%clk 0:02:52]}  bxc6 {[%clk 0:02:19]} 7. c4 {[%clk 0:02:52]}  e5 {[%clk 0:02:17]} 8. Qd3 {[%clk 0:02:50]}  Qc7 {[%clk 0:02:16]} 9. Nc3 {[%clk 0:02:49]}  h6 {[%clk 0:02:15]} 10. O-O {[%clk 0:02:47]}  Nf6 {[%clk 0:02:15]} 11. b3 {[%clk 0:02:45]}  Be7 {[%clk 0:02:15]} 12. Ba3 {[%clk 0:02:42]}  Be6 {[%clk 0:02:15]} 13. Rac1 {[%clk 0:02:41]}  c5 {[%clk 0:02:02]} 14. Rfd1 {[%clk 0:02:33]}  O-O {[%clk 0:02:01]} 15. h3 {[%clk 0:02:13]}  Rfb8 {[%clk 0:01:57]} 16. Bb2 {[%clk 0:02:09]}  Bf8 {[%clk 0:01:54]} 17. Nb5 {[%clk 0:02:00]}  Qc6 {[%clk 0:01:30]} 18. Nxd6 {[%clk 0:01:59]}  Rd8 {[%clk 0:01:30]} 19. Bxe5 {[%clk 0:01:59]}  Bxd6 {[%clk 0:01:24]} 20. Bxd6 {[%clk 0:01:38]}  Nxe4 {[%clk 0:01:22]} 21. Ne5 {[%clk 0:01:38]}  Qb7 {[%clk 0:01:20]} 22. Qf3 {[%clk 0:01:31]}  Rxd6 {[%clk 0:01:08]} 23. Re1 {[%clk 0:01:19]}  f5 {[%clk 0:00:50]} 24. Ng6 {[%clk 0:01:18]}  Qf7 {[%clk 0:00:29]} 25. Ne5 {[%clk 0:01:14]}  Qf6 {[%clk 0:00:29]} 26. Nd3 {[%clk 0:01:07]}  Rad8 {[%clk 0:00:27]} 27. Nf4 {[%clk 0:01:05]}  Bf7 {[%clk 0:00:28]} 28. Qe3 {[%clk 0:00:53]}  g5 {[%clk 0:00:25]} 29. Nd5 {[%clk 0:00:40]}  Bxd5 {[%clk 0:00:24]} 30. cxd5 {[%clk 0:00:41]}  Rxd5 {[%clk 0:00:25]} 31. g3 {[%clk 0:00:37]}  Rd3 {[%clk 0:00:24]} 32. Qe2 {[%clk 0:00:34]}  Rd2 {[%clk 0:00:24]} 33. Qc4+ {[%clk 0:00:35]}  R8d5 {[%clk 0:00:10]} 34. Rcd1 {[%clk 0:00:33]}  Qd6 {[%clk 0:00:03]} 35. Kg2 {[%clk 0:00:13]}  Kg7 {[%clk 0:00:02]} 36. Rxd2 {[%clk 0:00:13]}  Rxd2 {[%clk 0:00:02]} 37. Rf1 {[%clk 0:00:12]}  Qd4 {[%clk 0:00:02]} 38. Qxd4+ {[%clk 0:00:08]}  cxd4 {[%clk 0:00:03]} 39. Kf3 {[%clk 0:00:07]}  Kf6 {[%clk 0:00:03]} 40. g4 {[%clk 0:00:08]}  Ke5 {[%clk 0:00:03]} 41. gxf5 {[%clk 0:00:08]}  Kxf5 {[%clk 0:00:04]} 42. Kg2 {[%clk 0:00:08]}  Rxa2 {[%clk 0:00:05]} 43. Kf3 {[%clk 0:00:09]}  Nd2+ {[%clk 0:00:04]} 44. Ke2 {[%clk 0:00:10]}  Nxf1+ {[%clk 0:00:05]} 45. Kxf1 {[%clk 0:00:11]}  d3 {[%clk 0:00:06]} 46. Ke1 {[%clk 0:00:11]}  Ke4 {[%clk 0:00:06]} 47. Kd1 {[%clk 0:00:11]}  Kd4 {[%clk 0:00:07]} 48. b4 {[%clk 0:00:12]}  Kc3 {[%clk 0:00:07]} 49. b5 {[%clk 0:00:13]}  Ra1# {[%clk 0:00:08]} 0-1


[Site "https://www.chess.com"]

[Event "Titled Tuesday Blitz February 22 Late 2022"]
[White "Sorokin, Aleksey"]
[Black "Zeynalli, Rashad"]
[WhiteFideId "24176460"]
[BlackFideId "13403320"]
[WhiteElo "2476"]
[BlackElo "2125"]
[Result "1-0"]
[Round "03"]
[TimeControl "180+1"]
[Date "2022.02.22"]
[WhiteClock "0:00:13"]
[BlackClock "0:00:04"]

1. d4 {[%clk 0:03:00]}  Nf6 {[%clk 0:02:59]} 2. c4 {[%clk 0:03:01]}  e6 {[%clk 0:02:59]} 3. Nf3 {[%clk 0:03:01]}  d5 {[%clk 0:02:59]} 4. g3 {[%clk 0:03:01]}  Be7 {[%clk 0:02:59]} 5. Bg2 {[%clk 0:03:01]}  O-O {[%clk 0:03:00]} 6. O-O {[%clk 0:03:02]}  dxc4 {[%clk 0:03:00]} 7. Qc2 {[%clk 0:03:02]}  b5 {[%clk 0:03:00]} 8. a4 {[%clk 0:03:02]}  b4 {[%clk 0:03:00]} 9. Nfd2 {[%clk 0:03:00]}  c6 {[%clk 0:02:59]} 10. Nxc4 {[%clk 0:02:58]}  Qxd4 {[%clk 0:02:59]} 11. Rd1 {[%clk 0:02:55]}  Qc5 {[%clk 0:02:58]} 12. Be3 {[%clk 0:02:53]}  Qh5 {[%clk 0:02:58]} 13. Nbd2 {[%clk 0:02:53]}  Ng4 {[%clk 0:02:47]} 14. Nf3 {[%clk 0:02:53]}  Nxe3 {[%clk 0:02:48]} 15. Nxe3 {[%clk 0:02:52]}  a5 {[%clk 0:02:48]} 16. g4 {[%clk 0:02:24]}  Qg6 {[%clk 0:02:46]} 17. Qc1 {[%clk 0:02:19]}  Ba6 {[%clk 0:02:44]} 18. Rd2 {[%clk 0:02:13]}  Rd8 {[%clk 0:02:36]} 19. Rxd8+ {[%clk 0:02:11]}  Bxd8 {[%clk 0:02:37]} 20. Ne5 {[%clk 0:02:11]}  Qf6 {[%clk 0:02:20]} 21. Nxc6 {[%clk 0:02:10]}  Bb7 {[%clk 0:02:09]} 22. Nxd8 {[%clk 0:00:38]}  Bxg2 {[%clk 0:02:07]} 23. Qc7 {[%clk 0:00:38]}  Na6 {[%clk 0:01:40]} 24. Qxf7+ {[%clk 0:00:38]}  Qxf7 {[%clk 0:01:39]} 25. Nxf7 {[%clk 0:00:39]}  Bc6 {[%clk 0:01:21]} 26. Ne5 {[%clk 0:00:38]}  Be8 {[%clk 0:01:20]} 27. Nd3 {[%clk 0:00:37]}  Rc8 {[%clk 0:01:15]} 28. b3 {[%clk 0:00:37]}  Rc3 {[%clk 0:01:11]} 29. Rb1 {[%clk 0:00:35]}  Bc6 {[%clk 0:01:03]} 30. Nc4 {[%clk 0:00:22]}  Be4 {[%clk 0:00:23]} 31. Nxa5 {[%clk 0:00:19]}  Bxd3 {[%clk 0:00:23]} 32. exd3 {[%clk 0:00:19]}  Rxd3 {[%clk 0:00:24]} 33. Nc6 {[%clk 0:00:19]}  Kf8 {[%clk 0:00:21]} 34. Kg2 {[%clk 0:00:19]}  Ke8 {[%clk 0:00:21]} 35. a5 {[%clk 0:00:17]}  Rc3 {[%clk 0:00:20]} 36. Ne5 {[%clk 0:00:16]}  Nc5 {[%clk 0:00:18]} 37. Nc6 {[%clk 0:00:15]}  Kd7 {[%clk 0:00:15]} 38. Nxb4 {[%clk 0:00:14]}  Nxb3 {[%clk 0:00:09]} 39. a6 {[%clk 0:00:14]}  Kc8 {[%clk 0:00:07]} 40. a7 {[%clk 0:00:12]}  Kb7 {[%clk 0:00:07]} 41. Na2 {[%clk 0:00:12]}  Rc2 {[%clk 0:00:05]} 42. Rxb3+ {[%clk 0:00:11]}  Kxa7 {[%clk 0:00:06]} 43. Nb4 {[%clk 0:00:11]}  Rc4 {[%clk 0:00:05]} 44. h3 {[%clk 0:00:12]}  g6 {[%clk 0:00:05]} 45. Nd3 {[%clk 0:00:12]}  h5 {[%clk 0:00:04]} 46. Ne5 {[%clk 0:00:12]}  Re4 {[%clk 0:00:03]} 47. Re3 {[%clk 0:00:12]}  Rxe3 {[%clk 0:00:03]} 48. fxe3 {[%clk 0:00:12]}  hxg4 {[%clk 0:00:04]} 49. hxg4 {[%clk 0:00:13]} 1-0


[Site "https://www.chess.com"]

[Event "Titled Tuesday Blitz February 22 Late 2022"]
[White "Sviridov, Valery"]
[Black "Iskusnyh, Sergei"]
[WhiteFideId "4120680"]
[BlackFideId "4120027"]
[WhiteElo "2454"]
[BlackElo "2492"]
[Result "1-0"]
[Round "03"]
[TimeControl "180+1"]
[Date "2022.02.22"]
[WhiteClock "0:01:42"]
[BlackClock "0:00:01"]

1. Nf3 {[%clk 0:03:00]}  d5 {[%clk 0:02:57]} 2. g3 {[%clk 0:03:00]}  Nf6 {[%clk 0:02:56]} 3. Bg2 {[%clk 0:03:00]}  c6 {[%clk 0:02:56]} 4. O-O {[%clk 0:03:00]}  Bf5 {[%clk 0:02:56]} 5. c4 {[%clk 0:03:00]}  e6 {[%clk 0:02:51]} 6. cxd5 {[%clk 0:03:00]}  exd5 {[%clk 0:02:51]} 7. d3 {[%clk 0:03:00]}  Be7 {[%clk 0:02:50]} 8. Nc3 {[%clk 0:03:00]}  O-O {[%clk 0:02:47]} 9. Qb3 {[%clk 0:03:01]}  Qb6 {[%clk 0:02:45]} 10. Qc2 {[%clk 0:03:01]}  Na6 {[%clk 0:02:34]} 11. a3 {[%clk 0:02:59]}  h6 {[%clk 0:02:15]} 12. e4 {[%clk 0:02:57]}  dxe4 {[%clk 0:02:14]} 13. dxe4 {[%clk 0:02:57]}  Bh7 {[%clk 0:02:14]} 14. Be3 {[%clk 0:02:58]}  Qc7 {[%clk 0:01:55]} 15. h3 {[%clk 0:02:49]}  Rfe8 {[%clk 0:01:53]} 16. b4 {[%clk 0:02:43]}  Bf8 {[%clk 0:01:49]} 17. Nd2 {[%clk 0:02:40]}  Rad8 {[%clk 0:01:27]} 18. Rac1 {[%clk 0:02:40]}  Qd7 {[%clk 0:01:21]} 19. Rfd1 {[%clk 0:02:37]}  Nd5 {[%clk 0:00:36]} 20. Nxd5 {[%clk 0:02:14]}  cxd5 {[%clk 0:00:36]} 21. Qb3 {[%clk 0:02:15]}  d4 {[%clk 0:00:31]} 22. Nf3 {[%clk 0:02:15]}  Bxe4 {[%clk 0:00:29]} 23. Rxd4 {[%clk 0:02:12]}  Qe7 {[%clk 0:00:18]} 24. Re1 {[%clk 0:02:03]}  Qf6 {[%clk 0:00:14]} 25. Rxd8 {[%clk 0:01:59]}  Qxd8 {[%clk 0:00:13]} 26. Bxa7 {[%clk 0:01:54]}  Nc7 {[%clk 0:00:10]} 27. Bb6 {[%clk 0:01:49]}  Bxf3 {[%clk 0:00:10]} 28. Rxe8 {[%clk 0:01:48]}  Qxe8 {[%clk 0:00:10]} 29. Bxf3 {[%clk 0:01:47]}  Ne6 {[%clk 0:00:08]} 30. Be3 {[%clk 0:01:44]}  Ng5 {[%clk 0:00:08]} 31. Bg2 {[%clk 0:01:44]}  Qd7 {[%clk 0:00:06]} 32. h4 {[%clk 0:01:44]}  Ne6 {[%clk 0:00:05]} 33. Qd5 {[%clk 0:01:44]}  Qa4 {[%clk 0:00:04]} 34. Qd3 {[%clk 0:01:42]}  b5 {[%clk 0:00:02]} 35. Bd5 {[%clk 0:01:42]}  h5 {[%clk 0:00:01]} 36. Kg2 {[%clk 0:01:42]} 1-0


[Site "https://www.chess.com"]

[Event "Titled Tuesday Blitz February 22 Late 2022"]
[White "Terry, Renato"]
[Black "Garagulya, Konstantin"]
[WhiteFideId "3803457"]
[BlackFideId "4128931"]
[WhiteElo "2577"]
[BlackElo "2329"]
[Result "1-0"]
[Round "03"]
[TimeControl "180+1"]
[Date "2022.02.23"]
[WhiteClock "0:00:41"]
[BlackClock "0:00:02"]

1. e4 {[%clk 0:03:00]}  c5 {[%clk 0:02:59]} 2. Nf3 {[%clk 0:03:01]}  a6 {[%clk 0:02:59]} 3. c3 {[%clk 0:03:01]}  d5 {[%clk 0:02:59]} 4. exd5 {[%clk 0:03:01]}  Qxd5 {[%clk 0:03:00]} 5. d4 {[%clk 0:03:02]}  Nf6 {[%clk 0:03:00]} 6. c4 {[%clk 0:03:01]}  Qe4+ {[%clk 0:03:00]} 7. Be2 {[%clk 0:03:01]}  cxd4 {[%clk 0:02:58]} 8. Nbd2 {[%clk 0:02:47]}  Qg6 {[%clk 0:02:45]} 9. Nxd4 {[%clk 0:02:14]}  e5 {[%clk 0:02:18]} 10. N4b3 {[%clk 0:01:56]}  Qxg2 {[%clk 0:01:51]} 11. Bf3 {[%clk 0:01:56]}  Qh3 {[%clk 0:01:52]} 12. Qe2 {[%clk 0:01:53]}  Nbd7 {[%clk 0:01:17]} 13. Ne4 {[%clk 0:01:38]}  Nxe4 {[%clk 0:01:13]} 14. Qxe4 {[%clk 0:01:36]}  f5 {[%clk 0:00:57]} 15. Qd5 {[%clk 0:01:32]}  e4 {[%clk 0:00:52]} 16. Be2 {[%clk 0:01:27]}  Qg2 {[%clk 0:00:23]} 17. Rf1 {[%clk 0:01:24]}  Nf6 {[%clk 0:00:16]} 18. Qe5+ {[%clk 0:01:23]}  Be7 {[%clk 0:00:16]} 19. Be3 {[%clk 0:01:14]}  Kf7 {[%clk 0:00:10]} 20. O-O-O {[%clk 0:01:12]}  Qh3 {[%clk 0:00:09]} 21. Rg1 {[%clk 0:01:11]}  Re8 {[%clk 0:00:08]} 22. Qc7 {[%clk 0:01:06]}  Be6 {[%clk 0:00:05]} 23. Kb1 {[%clk 0:00:49]}  Rac8 {[%clk 0:00:04]} 24. Qxb7 {[%clk 0:00:49]}  Rb8 {[%clk 0:00:04]} 25. Qxa6 {[%clk 0:00:49]}  Qxh2 {[%clk 0:00:03]} 26. Nd4 {[%clk 0:00:47]}  Qe5 {[%clk 0:00:02]} 27. Bf4 {[%clk 0:00:41]} 1-0


[Site "https://www.chess.com"]

[Event "Titled Tuesday Blitz February 22 Late 2022"]
[White "Timofeev, Artyom"]
[Black "Vusatiuk, Vladimir"]
[WhiteFideId "4140419"]
[BlackFideId "14118610"]
[WhiteElo "2583"]
[BlackElo "2157"]
[Result "1-0"]
[Round "03"]
[TimeControl "180+1"]
[Date "2022.02.22"]
[WhiteClock "0:00:57"]
[BlackClock "0:00:03"]

1. d4 {[%clk 0:03:00]}  Nf6 {[%clk 0:02:59]} 2. c4 {[%clk 0:03:00]}  e6 {[%clk 0:02:59]} 3. Nc3 {[%clk 0:03:00]}  Bb4 {[%clk 0:02:59]} 4. e3 {[%clk 0:03:00]}  O-O {[%clk 0:02:57]} 5. Bd3 {[%clk 0:03:00]}  d5 {[%clk 0:02:58]} 6. Nf3 {[%clk 0:03:00]}  c5 {[%clk 0:02:58]} 7. O-O {[%clk 0:03:00]}  dxc4 {[%clk 0:02:58]} 8. Bxc4 {[%clk 0:03:00]}  cxd4 {[%clk 0:02:57]} 9. exd4 {[%clk 0:03:00]}  b6 {[%clk 0:02:42]} 10. Qe2 {[%clk 0:02:58]}  Bb7 {[%clk 0:02:39]} 11. Rd1 {[%clk 0:02:57]}  Nc6 {[%clk 0:02:24]} 12. d5 {[%clk 0:02:50]}  exd5 {[%clk 0:02:03]} 13. Nxd5 {[%clk 0:02:49]}  Nxd5 {[%clk 0:01:55]} 14. Bxd5 {[%clk 0:02:48]}  Qe7 {[%clk 0:01:49]} 15. Qxe7 {[%clk 0:02:14]}  Bxe7 {[%clk 0:01:50]} 16. Be3 {[%clk 0:02:10]}  Bf6 {[%clk 0:01:42]} 17. Nd4 {[%clk 0:01:57]}  Rac8 {[%clk 0:01:20]} 18. Nb5 {[%clk 0:01:53]}  Bxb2 {[%clk 0:00:59]} 19. Rab1 {[%clk 0:01:48]}  Be5 {[%clk 0:00:59]} 20. Nxa7 {[%clk 0:01:44]}  Nxa7 {[%clk 0:00:29]} 21. Bxb7 {[%clk 0:01:44]}  Rc2 {[%clk 0:00:30]} 22. Bd5 {[%clk 0:01:36]}  Nc8 {[%clk 0:00:23]} 23. Bb3 {[%clk 0:01:28]}  Rc7 {[%clk 0:00:20]} 24. Rd5 {[%clk 0:01:27]}  Bf6 {[%clk 0:00:19]} 25. g3 {[%clk 0:01:26]}  h5 {[%clk 0:00:19]} 26. Rxh5 {[%clk 0:01:26]}  g6 {[%clk 0:00:17]} 27. Rb5 {[%clk 0:01:20]}  Kg7 {[%clk 0:00:09]} 28. Rd1 {[%clk 0:01:20]}  Rc6 {[%clk 0:00:06]} 29. Kg2 {[%clk 0:01:18]}  Re8 {[%clk 0:00:07]} 30. h4 {[%clk 0:01:08]}  Re7 {[%clk 0:00:06]} 31. Rbd5 {[%clk 0:01:07]}  Ra7 {[%clk 0:00:06]} 32. Rd7 {[%clk 0:01:05]}  Rcc7 {[%clk 0:00:06]} 33. R7d3 {[%clk 0:01:03]}  Ra6 {[%clk 0:00:04]} 34. Bf4 {[%clk 0:01:03]}  Re7 {[%clk 0:00:04]} 35. Rd8 {[%clk 0:01:02]}  Ra8 {[%clk 0:00:03]} 36. Rc1 {[%clk 0:01:00]}  Rc7 {[%clk 0:00:01]} 37. Bxc7 {[%clk 0:00:59]}  Bxd8 {[%clk 0:00:02]} 38. Bxd8 {[%clk 0:00:59]}  Nd6 {[%clk 0:00:03]} 39. Bxb6 {[%clk 0:00:59]}  Ne4 {[%clk 0:00:03]} 40. Bd4+ {[%clk 0:00:59]}  Kh7 {[%clk 0:00:03]} 41. Rc7 {[%clk 0:00:58]}  Nd2 {[%clk 0:00:03]} 42. Rxf7+ {[%clk 0:00:58]}  Kh6 {[%clk 0:00:03]} 43. Be3+ {[%clk 0:00:57]} 1-0


[Site "https://www.chess.com"]

[Event "Titled Tuesday Blitz February 22 Late 2022"]
[White "Van Foreest, Jorden"]
[Black "Bryakin, Mikhail"]
[WhiteFideId "1039784"]
[BlackFideId "4165314"]
[WhiteElo "2609"]
[BlackElo "2421"]
[Result "1/2-1/2"]
[Round "03"]
[TimeControl "180+1"]
[Date "2022.02.22"]
[WhiteClock "0:00:35"]
[BlackClock "0:00:59"]

1. e4 {[%clk 0:03:00]}  c5 {[%clk 0:02:56]} 2. Nf3 {[%clk 0:03:00]}  Nc6 {[%clk 0:02:53]} 3. Bc4 {[%clk 0:02:57]}  e6 {[%clk 0:02:47]} 4. O-O {[%clk 0:02:57]}  d5 {[%clk 0:02:44]} 5. Bb5 {[%clk 0:02:54]}  dxe4 {[%clk 0:02:39]} 6. Ne5 {[%clk 0:02:53]}  Bd7 {[%clk 0:02:38]} 7. Nxd7 {[%clk 0:02:52]}  Qxd7 {[%clk 0:02:38]} 8. Nc3 {[%clk 0:02:42]}  Nf6 {[%clk 0:02:38]} 9. Re1 {[%clk 0:02:42]}  a6 {[%clk 0:02:39]} 10. Bxc6 {[%clk 0:02:43]}  Qxc6 {[%clk 0:02:39]} 11. Qe2 {[%clk 0:02:44]}  Be7 {[%clk 0:02:37]} 12. Nxe4 {[%clk 0:02:42]}  Nxe4 {[%clk 0:02:38]} 13. Qxe4 {[%clk 0:02:43]}  Qxe4 {[%clk 0:02:38]} 14. Rxe4 {[%clk 0:02:44]}  O-O-O {[%clk 0:02:37]} 15. d3 {[%clk 0:02:44]}  Rd5 {[%clk 0:02:36]} 16. a4 {[%clk 0:02:43]}  b6 {[%clk 0:02:33]} 17. Bd2 {[%clk 0:02:38]}  Kb7 {[%clk 0:02:33]} 18. Bc3 {[%clk 0:02:38]}  Rg8 {[%clk 0:02:28]} 19. Rf4 {[%clk 0:02:27]}  f6 {[%clk 0:02:27]} 20. Re4 {[%clk 0:02:27]}  e5 {[%clk 0:02:23]} 21. f4 {[%clk 0:02:26]}  Bd6 {[%clk 0:02:22]} 22. fxe5 {[%clk 0:02:25]}  Bxe5 {[%clk 0:02:22]} 23. Bxe5 {[%clk 0:02:25]}  Rxe5 {[%clk 0:02:22]} 24. Rxe5 {[%clk 0:02:24]}  fxe5 {[%clk 0:02:23]} 25. Re1 {[%clk 0:02:19]}  Re8 {[%clk 0:02:23]} 26. Kf2 {[%clk 0:02:20]}  Kc6 {[%clk 0:02:23]} 27. Ke3 {[%clk 0:02:19]}  Rf8 {[%clk 0:02:21]} 28. Re2 {[%clk 0:01:56]}  Kd5 {[%clk 0:02:18]} 29. g3 {[%clk 0:01:46]}  g6 {[%clk 0:02:14]} 30. Kd2 {[%clk 0:01:39]}  Rf1 {[%clk 0:02:11]} 31. Ke3 {[%clk 0:01:31]}  b5 {[%clk 0:02:06]} 32. axb5 {[%clk 0:01:30]}  axb5 {[%clk 0:02:07]} 33. c3 {[%clk 0:01:28]}  g5 {[%clk 0:01:55]} 34. Kd2 {[%clk 0:01:13]}  g4 {[%clk 0:01:47]} 35. b3 {[%clk 0:01:13]}  h5 {[%clk 0:01:45]} 36. c4+ {[%clk 0:01:10]}  bxc4 {[%clk 0:01:45]} 37. bxc4+ {[%clk 0:01:11]}  Ke6 {[%clk 0:01:45]} 38. Ke3 {[%clk 0:01:11]}  Rf3+ {[%clk 0:01:34]} 39. Ke4 {[%clk 0:01:07]}  Rf1 {[%clk 0:01:34]} 40. Ke3 {[%clk 0:01:04]}  Rf3+ {[%clk 0:01:34]} 41. Kd2 {[%clk 0:01:01]}  Rf1 {[%clk 0:01:34]} 42. Kc3 {[%clk 0:01:00]}  Rb1 {[%clk 0:01:15]} 43. Ra2 {[%clk 0:00:58]}  Rc1+ {[%clk 0:01:11]} 44. Kd2 {[%clk 0:00:58]}  Rh1 {[%clk 0:01:10]} 45. Ke3 {[%clk 0:00:57]}  Re1+ {[%clk 0:01:09]} 46. Kf2 {[%clk 0:00:57]}  Rh1 {[%clk 0:01:10]} 47. Ke3 {[%clk 0:00:51]}  Re1+ {[%clk 0:01:10]} 48. Kd2 {[%clk 0:00:50]}  Rh1 {[%clk 0:01:10]} 49. Kc3 {[%clk 0:00:49]}  Rc1+ {[%clk 0:01:01]} 50. Kb3 {[%clk 0:00:49]}  Rd1 {[%clk 0:01:01]} 51. Kc3 {[%clk 0:00:35]}  Rc1+ {[%clk 0:00:59]} 1/2-1/2


[Site "https://www.chess.com"]

[Event "Titled Tuesday Blitz February 22 Late 2022"]
[White "Van den Dikkenberg, Erik"]
[Black "Holt, Conrad"]
[WhiteFideId "1005880"]
[BlackFideId "2034387"]
[WhiteElo "2118"]
[BlackElo "2586"]
[Result "0-1"]
[Round "03"]
[TimeControl "180+1"]
[Date "2022.02.22"]
[WhiteClock "0:00:16"]
[BlackClock "0:01:36"]

1. e4 {[%clk 0:03:00]}  e6 {[%clk 0:02:58]} 2. d4 {[%clk 0:03:00]}  d5 {[%clk 0:02:58]} 3. Nc3 {[%clk 0:02:59]}  Nf6 {[%clk 0:02:58]} 4. e5 {[%clk 0:02:59]}  Nfd7 {[%clk 0:02:59]} 5. f4 {[%clk 0:02:59]}  c5 {[%clk 0:02:59]} 6. Nf3 {[%clk 0:02:59]}  Nc6 {[%clk 0:03:00]} 7. Be3 {[%clk 0:02:59]}  cxd4 {[%clk 0:03:01]} 8. Nxd4 {[%clk 0:02:58]}  Bc5 {[%clk 0:03:01]} 9. Qd2 {[%clk 0:02:58]}  O-O {[%clk 0:03:01]} 10. O-O-O {[%clk 0:02:57]}  a6 {[%clk 0:03:02]} 11. h4 {[%clk 0:02:57]}  Nxd4 {[%clk 0:03:00]} 12. Bxd4 {[%clk 0:02:57]}  b5 {[%clk 0:03:01]} 13. h5 {[%clk 0:02:55]}  b4 {[%clk 0:03:01]} 14. Ne2 {[%clk 0:02:54]}  a5 {[%clk 0:03:00]} 15. Rh3 {[%clk 0:02:50]}  Ba6 {[%clk 0:02:51]} 16. Ng3 {[%clk 0:02:30]}  Bxf1 {[%clk 0:02:39]} 17. Rxf1 {[%clk 0:02:25]}  Bxd4 {[%clk 0:02:29]} 18. Qxd4 {[%clk 0:02:25]}  Rc8 {[%clk 0:02:30]} 19. f5 {[%clk 0:02:20]}  Rc4 {[%clk 0:02:28]} 20. Qd2 {[%clk 0:02:16]}  Nxe5 {[%clk 0:02:27]} 21. f6 {[%clk 0:02:09]}  gxf6 {[%clk 0:02:20]} 22. h6 {[%clk 0:01:57]}  Rg4 {[%clk 0:01:52]} 23. Nh5 {[%clk 0:01:52]}  f5 {[%clk 0:01:47]} 24. Qe3 {[%clk 0:01:06]}  Nc4 {[%clk 0:01:44]} 25. Qe2 {[%clk 0:00:54]}  Qg5+ {[%clk 0:01:42]} 26. Kb1 {[%clk 0:00:47]}  Rxg2 {[%clk 0:01:39]} 27. Qd1 {[%clk 0:00:19]}  Nd2+ {[%clk 0:01:36]} 28. Ka1 {[%clk 0:00:19]}  Nxf1 {[%clk 0:01:36]} 29. Qxf1 {[%clk 0:00:16]}  Rg1 {[%clk 0:01:36]} 30. Nf6+ {[%clk 0:00:16]}  Kh8 {[%clk 0:01:36]} 0-1


[Site "https://www.chess.com"]

[Event "Titled Tuesday Blitz February 22 Late 2022"]
[White "Velikanov, Alexander"]
[Black "Chernomordik, Pavel"]
[WhiteFideId "2039290"]
[BlackFideId "2804530"]
[WhiteElo "2259"]
[BlackElo "2249"]
[Result "0-1"]
[Round "03"]
[TimeControl "180+1"]
[Date "2022.02.23"]
[WhiteClock "0:00:02"]
[BlackClock "0:00:49"]

1. g3 {[%clk 0:02:58]}  h5 {[%clk 0:02:53]} 2. Nf3 {[%clk 0:02:58]}  g6 {[%clk 0:02:52]} 3. d4 {[%clk 0:02:42]}  Bg7 {[%clk 0:02:52]} 4. e4 {[%clk 0:02:39]}  d6 {[%clk 0:02:51]} 5. Nbd2 {[%clk 0:02:27]}  c5 {[%clk 0:02:49]} 6. c3 {[%clk 0:02:17]}  Nc6 {[%clk 0:02:45]} 7. Bb5 {[%clk 0:02:16]}  Bd7 {[%clk 0:02:42]} 8. dxc5 {[%clk 0:01:24]}  dxc5 {[%clk 0:02:38]} 9. O-O {[%clk 0:01:24]}  a6 {[%clk 0:02:36]} 10. Bc4 {[%clk 0:01:03]}  b5 {[%clk 0:02:32]} 11. Bb3 {[%clk 0:00:56]}  c4 {[%clk 0:02:30]} 12. Bc2 {[%clk 0:00:56]}  Qc7 {[%clk 0:02:27]} 13. a4 {[%clk 0:00:54]}  Rb8 {[%clk 0:02:26]} 14. Re1 {[%clk 0:00:48]}  Nh6 {[%clk 0:02:18]} 15. e5 {[%clk 0:00:48]}  Nf5 {[%clk 0:02:08]} 16. e6 {[%clk 0:00:44]}  Bxe6 {[%clk 0:02:07]} 17. Rxe6 {[%clk 0:00:44]}  fxe6 {[%clk 0:02:06]} 18. Ng5 {[%clk 0:00:45]}  Qd6 {[%clk 0:01:53]} 19. Qe2 {[%clk 0:00:32]}  Ne5 {[%clk 0:01:38]} 20. Nde4 {[%clk 0:00:24]}  Qc6 {[%clk 0:01:37]} 21. axb5 {[%clk 0:00:22]}  axb5 {[%clk 0:01:37]} 22. Nc5 {[%clk 0:00:09]}  Qxc5 {[%clk 0:01:26]} 23. Nxe6 {[%clk 0:00:10]}  Qc6 {[%clk 0:01:21]} 24. Nxg7+ {[%clk 0:00:09]}  Nxg7 {[%clk 0:01:15]} 25. Qxe5 {[%clk 0:00:09]}  O-O {[%clk 0:01:15]} 26. Ra7 {[%clk 0:00:04]}  Qf6 {[%clk 0:01:07]} 27. Qe2 {[%clk 0:00:02]}  Rbe8 {[%clk 0:01:03]} 28. Rb7 {[%clk 0:00:03]}  Nf5 {[%clk 0:00:54]} 29. Be4 {[%clk 0:00:03]}  Nd6 {[%clk 0:00:50]} 30. Ra7 {[%clk 0:00:02]}  Nxe4 {[%clk 0:00:49]} 0-1


[Site "https://www.chess.com"]